[Event "44th Chess Olympiad Open 2022"]
[Site "Chennai"]
[Date "2022.07.29"]
[Round "1.34"]
[White "Coulibaly, Abdoulaye"]
[Black "Ftacnik, Lubomir"]
[Result "0-1"]
[WhiteElo "1936"]
[BlackElo "2483"]
[Annotator "RC"]
[PlyCount "52"]
[EventDate "2022.??.??"]
[TimeControl "60"]

1. e4 {[%emt 0:00:09]} c5 {[%emt 0:00:10]} 2. Nf3 {[%emt 0:00:25]} d6 {[%emt 0:
00:00]} 3. Nc3 {[%emt 0:01:10]} a6 {[%emt 0:00:46]} 4. h3 {[%emt 0:00:56]} Nc6
{[%emt 0:01:48]} 5. d4 {[%emt 0:00:33]} cxd4 {[%emt 0:00:08]} 6. Nxd4 {[%emt 0:
00:00]} e6 {[%emt 0:01:59]} 7. Be2 {[%emt 0:01:44]} Nf6 {[%emt 0:00:39]} 8. O-O
{[%emt 0:00:32]} Be7 {[%emt 0:00:27]} 9. Bf3 {[%emt 0:01:36]} Qc7 {[%emt 0:00:
00]} 10. b3 {[%emt 0:04:51]} Ne5 {[%emt 0:03:40]} 11. Bb2 {[%emt 0:01:19]} b5 {
[%emt 0:01:19]} 12. Re1 {[%emt 0:02:10]} Bb7 {[%emt 0:02:08]} 13. Rc1 {[%emt 0:
00:00]} O-O {[%emt 0:01:03]} 14. Qe2 {[%emt 0:01:13]} Rac8 {[%emt 0:05:38]} 15.
Nd1 {[%emt 0:04:03]} Rfd8 {[%emt 0:03:42]} 16. c3 {[%emt 0:01:16]} Qb8 {
[%emt 0:05:00]} 17. Ne3 {[%emt 0:01:10]} Nxe4 {[%emt 0:10:17]} 18. Bxe4 {
[%emt 0:14:40]} Bxe4 {[%emt 0:00:07]} 19. Ng4 {[%emt 0:00:11]} Bg6 {[%emt 0:00:
00]} 20. Nxe5 {[%emt 0:01:03]} dxe5 {[%emt 0:00:08]} 21. Qxe5 {[%emt 0:00:24]}
Qxe5 {[%emt 0:04:44]} 22. Rxe5 {[%emt 0:00:01]} b4 {[%emt 0:10:31]} 23. Ne2 {
[%emt 0:03:51]} Rd2 {[%emt 0:02:39]} 24. cxb4 {[%emt 0:00:52]} Rxc1+ {[%emt 0:
00:00]} 25. Bxc1 {[%emt 0:00:04]} Rd1+ {[%emt 0:00:08]} 26. Kh2 {[%emt 0:00:57]
} Bd6 {[%emt 0:00:03]} 0-1

[Event "44th Chess Olympiad Open 2022"]
[Site "Chennai"]
[Date "2022.07.29"]
[Round "1.34"]
[White "Diarra, Sirike"]
[Black "Druska, Juraj"]
[Result "0-1"]
[WhiteElo "1641"]
[BlackElo "2519"]
[Annotator "RC"]
[PlyCount "53"]
[EventDate "2022.??.??"]
[TimeControl "60"]

1. d4 {[%emt 0:00:07]} Nf6 {[%emt 0:00:36]} 2. c4 {[%emt 0:00:47]} e6 {[%emt 0:
00:00]} 3. Nf3 {[%emt 0:00:41]} c5 {[%emt 0:04:05]} 4. e3 {[%emt 0:02:00]} d5 {
[%emt 0:03:15]} 5. Be2 {[%emt 0:01:39]} dxc4 {[%emt 0:06:35]} 6. O-O {[%emt 0:
00:00]} a6 {[%emt 0:00:48]} 7. Bxc4 {[%emt 0:01:03]} b5 {[%emt 0:00:13]} 8. Be2
{[%emt 0:00:56]} Bb7 {[%emt 0:00:32]} 9. a3 {[%emt 0:02:52]} Nbd7 {[%emt 0:00:
00]} 10. Nc3 {[%emt 0:01:01]} Rc8 {[%emt 0:01:44]} 11. Re1 {[%emt 0:02:29]} Be7
{[%emt 0:00:47]} 12. Bf1 {[%emt 0:00:43]} O-O {[%emt 0:01:15]} 13. Qe2 {
[%emt 0:01:25]} Qb6 {[%emt 0:01:38]} 14. Rd1 {[%emt 0:06:10]} Rfd8 {[%emt 0:00:
00]} 15. h3 {[%emt 0:00:07]} h6 {[%emt 0:02:02]} 16. Ne1 {[%emt 0:00:34]} Nd5 {
[%emt 0:06:28]} 17. Nxd5 {[%emt 0:00:28]} Bxd5 {[%emt 0:00:07]} 18. Nf3 {
[%emt 0:08:23]} Bf6 {[%emt 0:06:16]} 19. e4 {[%emt 0:04:35]} Bc4 {[%emt 0:00:
00]} 20. Qe3 {[%emt 0:02:20]} cxd4 {[%emt 0:01:11]} 21. Qf4 {[%emt 0:02:37]} e5
{[%emt 0:04:32]} 22. Qg3 {[%emt 0:00:17]} Kh7 {[%emt 0:03:42]} 23. Qg4 {
[%emt 0:02:24]} Be6 {[%emt 0:01:23]} 24. Qh5 {[%emt 0:00:10]} Rxc1 {[%emt 0:00:
00]} 25. h4 {[%emt 0:13:55]} Rxd1 {[%emt 0:04:18]} 26. Ng5+ {[%emt 0:00:03]}
Bxg5 {[%emt 0:00:16]} 27. Rxd1 {[%emt 0:00:50]} 0-1

[Event "44th Chess Olympiad Open 2022"]
[Site "Chennai"]
[Date "2022.07.29"]
[Round "1.35"]
[White "Stremavicius, Titas"]
[Black "Wojciechowski, Paul"]
[Result "1-0"]
[WhiteElo "2532"]
[BlackElo "1944"]
[Annotator "RC"]
[PlyCount "75"]
[EventDate "2022.??.??"]
[TimeControl "60"]

1. d4 {[%emt 0:00:04]} Nf6 {[%emt 0:00:06]} 2. c4 {[%emt 0:00:10]} g6 {[%emt 0:
00:00]} 3. h4 {[%emt 0:00:09]} Bg7 {[%emt 0:02:15]} 4. Nc3 {[%emt 0:00:10]} d6
{[%emt 0:00:47]} 5. e4 {[%emt 0:00:17]} Nbd7 {[%emt 0:03:20]} 6. Be2 {[%emt 0:
00:00]} c5 {[%emt 0:01:23]} 7. d5 {[%emt 0:01:37]} a6 {[%emt 0:02:02]} 8. a4 {
[%emt 0:05:52]} b6 {[%emt 0:04:58]} 9. g4 {[%emt 0:03:57]} h6 {[%emt 0:05:10]}
10. Nh3 {[%emt 0:03:06]} Ne5 {[%emt 0:09:55]} 11. f3 {[%emt 0:00:12]} Qc7 {
[%emt 0:11:18]} 12. Nf2 {[%emt 0:02:30]} h5 {[%emt 0:07:06]} 13. g5 {[%emt 0:
00:00]} Nh7 {[%emt 0:02:49]} 14. f4 {[%emt 0:00:49]} Nd7 {[%emt 0:01:01]} 15.
Be3 {[%emt 0:01:41]} Bb7 {[%emt 0:07:05]} 16. Rg1 {[%emt 0:09:07]} Nhf8 {
[%emt 0:08:20]} 17. Qd2 {[%emt 0:04:12]} O-O-O {[%emt 0:09:32]} 18. a5 {
[%emt 0:02:03]} bxa5 {[%emt 0:03:06]} 19. Ncd1 {[%emt 0:00:16]} Re8 {[%emt 0:
00:00]} 20. Rxa5 {[%emt 0:01:58]} e6 {[%emt 0:05:29]} 21. b4 {[%emt 0:00:09]}
cxb4 {[%emt 0:05:33]} 22. Qxb4 {[%emt 0:03:16]} f5 {[%emt 0:00:52]} 23. gxf6 {
[%emt 0:12:15]} Bxf6 {[%emt 0:00:07]} 24. e5 {[%emt 0:00:06]} dxe5 {[%emt 0:00:
00]} 25. Ne4 {[%emt 0:02:24]} Be7 {[%emt 0:03:04]} 26. d6 {[%emt 0:01:29]}
Bxh4+ {[%emt 0:00:04]} 27. Nef2 {[%emt 0:01:21]} Qc6 {[%emt 0:00:52]} 28. fxe5
{[%emt 0:00:03]} Nh7 {[%emt 0:01:39]} 29. Rxg6 {[%emt 0:09:17]} Rhg8 {[%emt 0:
00:00]} 30. Bxh5 {[%emt 0:02:13]} Qh1+ {[%emt 0:00:34]} 31. Kd2 {[%emt 0:00:05]
} Bxf2 {[%emt 0:00:12]} 32. Nxf2 {[%emt 0:01:41]} Qxh5 {[%emt 0:00:07]} 33.
Rc5+ {[%emt 0:00:03]} Nxc5 {[%emt 0:01:17]} 34. Qxc5+ {[%emt 0:00:06]} Kb8 {
[%emt 0:00:07]} 35. Qa7+ {[%emt 0:00:18]} Kc8 {[%emt 0:00:08]} 36. d7+ {
[%emt 0:00:18]} Kd8 {[%emt 0:01:37]} 37. dxe8=Q+ {[%emt 0:01:53]} Kxe8 {
[%emt 0:00:03]} 38. Rxg8+ {[%emt 0:00:10]} 1-0

[Event "44th Chess Olympiad Open 2022"]
[Site "Chennai"]
[Date "2022.07.29"]
[Round "1.35"]
[White "Kazakouski, Valery"]
[Black "Forbes, Garry"]
[Result "1/2-1/2"]
[WhiteElo "2528"]
[BlackElo "1908"]
[Annotator "RC"]
[PlyCount "23"]
[EventDate "2022.??.??"]
[TimeControl "60"]

1. d4 {[%emt 0:00:05]} Nf6 {[%emt 0:00:04]} 2. c4 {[%emt 0:00:40]} g6 {[%emt 0:
00:00]} 3. g3 {[%emt 0:00:06]} Bg7 {[%emt 0:00:03]} 4. Bg2 {[%emt 0:00:07]} d6
{[%emt 0:00:29]} 5. Nf3 {[%emt 0:00:07]} O-O {[%emt 0:00:03]} 6. O-O {[%emt 0:
00:00]} c6 {[%emt 0:00:16]} 7. Nc3 {[%emt 0:00:08]} Bf5 {[%emt 0:02:36]} 8. Ng5
{[%emt 0:00:17]} h6 {[%emt 0:04:18]} 9. e4 {[%emt 0:00:10]} Bc8 {[%emt 0:01:07]
} 10. Nf3 {[%emt 0:00:17]} Nbd7 {[%emt 0:00:37]} 11. h3 {[%emt 0:00:53]} e5 {
[%emt 0:03:34]} 12. Be3 {[%emt 0:00:16]} 1/2-1/2

[Event "44th Chess Olympiad Open 2022"]
[Site "Chennai"]
[Date "2022.07.29"]
[Round "1.35"]
[White "Carpenter, Paul A"]
[Black "Laurusas, Tomas"]
[Result "0-1"]
[WhiteElo "1938"]
[BlackElo "2561"]
[Annotator "RC"]
[PlyCount "60"]
[EventDate "2022.??.??"]
[TimeControl "60"]

1. e4 {[%emt 0:00:06]} c5 {[%emt 0:00:50]} 2. d3 {[%emt 0:00:44]} Nc6 {[%emt 0:
00:00]} 3. Nd2 {[%emt 0:01:00]} Nf6 {[%emt 0:01:51]} 4. Ngf3 {[%emt 0:01:03]}
d5 {[%emt 0:00:29]} 5. h3 {[%emt 0:01:03]} e5 {[%emt 0:04:17]} 6. c3 {[%emt 0:
00:00]} Be7 {[%emt 0:00:42]} 7. Be2 {[%emt 0:01:57]} O-O {[%emt 0:00:09]} 8.
Qc2 {[%emt 0:01:15]} Re8 {[%emt 0:05:09]} 9. g4 {[%emt 0:02:35]} b5 {[%emt 0:
00:00]} 10. Nf1 {[%emt 0:02:42]} d4 {[%emt 0:10:02]} 11. Ng3 {[%emt 0:09:25]}
g6 {[%emt 0:03:25]} 12. Bh6 {[%emt 0:07:59]} Nd7 {[%emt 0:01:33]} 13. Rg1 {
[%emt 0:01:24]} Nf8 {[%emt 0:02:19]} 14. Nf5 {[%emt 0:03:12]} Ne6 {[%emt 0:00:
00]} 15. h4 {[%emt 0:15:35]} Bf6 {[%emt 0:03:02]} 16. Bd2 {[%emt 0:20:53]} Kh8
{[%emt 0:06:00]} 17. Nh6 {[%emt 0:01:04]} Qe7 {[%emt 0:11:56]} 18. g5 {[%emt 0:
00:00]} Bg7 {[%emt 0:11:03]} 19. h5 {[%emt 0:00:00]} Nf4 {[%emt 0:02:05]} 20.
hxg6 {[%emt 0:00:00]} fxg6 {[%emt 0:01:26]} 21. Qb3 {[%emt 0:00:00]} Rf8 {
[%emt 0:02:38]} 22. Bxf4 {[%emt 0:04:12]} exf4 {[%emt 0:00:02]} 23. Rc1 {
[%emt 0:10:20]} Rb8 {[%emt 0:03:35]} 24. Kd2 {[%emt 0:06:22]} Be6 {[%emt 0:00:
00]} 25. Qc2 {[%emt 0:00:20]} dxc3+ {[%emt 0:03:51]} 26. bxc3 {[%emt 0:00:11]}
b4 {[%emt 0:00:15]} 27. cxb4 {[%emt 0:00:28]} c4 {[%emt 0:00:04]} 28. a3 {
[%emt 0:01:06]} Nxb4 {[%emt 0:00:06]} 29. axb4 {[%emt 0:01:44]} Qxb4+ {[%emt 0:
00:00]} 30. Kd1 {[%emt 0:00:02]} cxd3 {[%emt 0:00:09]} 0-1

[Event "44th Chess Olympiad Open 2022"]
[Site "Chennai"]
[Date "2022.07.29"]
[Round "1.35"]
[White "Gurner, Jem"]
[Black "Juksta, Karolis"]
[Result "0-1"]
[WhiteElo "1800"]
[BlackElo "2412"]
[Annotator "RC"]
[PlyCount "90"]
[EventDate "2022.??.??"]
[TimeControl "60"]

1. e4 {[%emt 0:00:03]} e6 {[%emt 0:00:18]} 2. d4 {[%emt 0:00:03]} d5 {[%emt 0:
00:00]} 3. Nd2 {[%emt 0:00:04]} c5 {[%emt 0:02:17]} 4. exd5 {[%emt 0:00:13]}
exd5 {[%emt 0:00:11]} 5. Ngf3 {[%emt 0:00:12]} Nc6 {[%emt 0:01:05]} 6. Bb5 {
[%emt 0:00:25]} Qe7+ {[%emt 0:05:48]} 7. Be2 {[%emt 0:03:31]} Qc7 {[%emt 0:00:
00]} 8. O-O {[%emt 0:00:36]} Nf6 {[%emt 0:01:42]} 9. Re1 {[%emt 0:00:58]} cxd4
{[%emt 0:04:04]} 10. Nb3 {[%emt 0:01:05]} Be7 {[%emt 0:00:09]} 11. Nfxd4 {
[%emt 0:03:11]} O-O {[%emt 0:00:20]} 12. g3 {[%emt 0:04:00]} Bh3 {[%emt 0:00:
00]} 13. Bf4 {[%emt 0:02:09]} Qd7 {[%emt 0:01:03]} 14. c3 {[%emt 0:03:39]} Rfe8
{[%emt 0:02:51]} 15. Bd3 {[%emt 0:07:33]} Bf8 {[%emt 0:04:12]} 16. Qc2 {
[%emt 0:06:22]} g6 {[%emt 0:02:16]} 17. Rad1 {[%emt 0:08:26]} Rac8 {[%emt 0:00:
00]} 18. Nxc6 {[%emt 0:11:02]} bxc6 {[%emt 0:01:18]} 19. Be3 {[%emt 0:06:56]}
Ng4 {[%emt 0:06:45]} 20. Nc5 {[%emt 0:09:48]} Qe7 {[%emt 0:09:11]} 21. b4 {
[%emt 0:01:07]} Ne5 {[%emt 0:03:47]} 22. Be2 {[%emt 0:01:36]} h5 {[%emt 0:00:
00]} 23. Nd3 {[%emt 0:03:33]} Bf5 {[%emt 0:02:53]} 24. Kg2 {[%emt 0:08:12]} h4
{[%emt 0:01:55]} 25. Bd4 {[%emt 0:02:39]} Bg7 {[%emt 0:04:14]} 26. Qc1 {
[%emt 0:01:42]} h3+ {[%emt 0:03:50]} 27. Kf1 {[%emt 0:01:31]} Qb7 {[%emt 0:00:
00]} 28. Bxe5 {[%emt 0:06:13]} Bxe5 {[%emt 0:00:20]} 29. Nxe5 {[%emt 0:00:04]}
Rxe5 {[%emt 0:00:08]} 30. Qd2 {[%emt 0:02:01]} Rce8 {[%emt 0:04:24]} 31. Bd3 {
[%emt 0:00:27]} c5 {[%emt 0:03:51]} 32. Rxe5 {[%emt 0:03:55]} Rxe5 {[%emt 0:00:
00]} 33. Re1 {[%emt 0:02:35]} Rxe1+ {[%emt 0:01:09]} 34. Kxe1 {[%emt 0:00:04]}
Bxd3 {[%emt 0:00:24]} 35. Qxd3 {[%emt 0:00:03]} cxb4 {[%emt 0:00:06]} 36. cxb4
{[%emt 0:01:15]} Qxb4+ {[%emt 0:00:06]} 37. Ke2 {[%emt 0:00:59]} Qb2+ {[%emt 0:
00:00]} 38. Qd2 {[%emt 0:00:42]} Qxd2+ {[%emt 0:02:18]} 39. Kxd2 {[%emt 0:00:
00]} Kf8 {[%emt 0:00:55]} 40. Kd3 {[%emt 0:00:03]} Ke7 {[%emt 0:00:05]} 41. Kd4
{[%emt 0:30:06]} Kd6 {[%emt 0:30:08]} 42. f3 {[%emt 0:00:42]} f6 {[%emt 0:00:
00]} 43. f4 {[%emt 0:00:52]} f5 {[%emt 0:01:07]} 44. a3 {[%emt 0:00:13]} a6 {
[%emt 0:00:05]} 45. a4 {[%emt 0:00:10]} a5 {[%emt 0:00:06]} 0-1

[Event "44th Chess Olympiad Open 2022"]
[Site "Chennai"]
[Date "2022.07.29"]
[Round "1.36"]
[White "Georgiadis, Nico"]
[Black "Yahi, Mohamed Salem"]
[Result "1-0"]
[WhiteElo "2578"]
[BlackElo "1862"]
[Annotator "RC"]
[PlyCount "47"]
[EventDate "2022.??.??"]
[TimeControl "60"]

1. e4 {[%emt 0:00:03]} e6 {[%emt 0:00:09]} 2. d4 {[%emt 0:00:07]} d5 {[%emt 0:
00:00]} 3. Nc3 {[%emt 0:00:07]} Bb4 {[%emt 0:00:16]} 4. e5 {[%emt 0:00:21]} c5
{[%emt 0:02:41]} 5. a3 {[%emt 0:00:09]} Bxc3+ {[%emt 0:00:33]} 6. bxc3 {
[%emt 0:00:08]} Qa5 {[%emt 0:00:25]} 7. Bd2 {[%emt 0:00:18]} Qa4 {[%emt 0:00:
00]} 8. Qg4 {[%emt 0:01:24]} Ne7 {[%emt 0:01:09]} 9. Qxg7 {[%emt 0:05:54]} Rg8
{[%emt 0:00:13]} 10. Qxh7 {[%emt 0:00:06]} cxd4 {[%emt 0:02:03]} 11. Rb1 {
[%emt 0:04:00]} Qxa3 {[%emt 0:02:00]} 12. cxd4 {[%emt 0:01:19]} Nbc6 {[%emt 0:
00:00]} 13. Nf3 {[%emt 0:01:44]} Qa2 {[%emt 0:01:53]} 14. c3 {[%emt 0:14:31]}
Rg7 {[%emt 0:02:15]} 15. Qd3 {[%emt 0:03:18]} b5 {[%emt 0:05:58]} 16. Be2 {
[%emt 0:17:59]} a6 {[%emt 0:04:21]} 17. h4 {[%emt 0:02:50]} Nf5 {[%emt 0:03:31]
} 18. h5 {[%emt 0:05:28]} Qc4 {[%emt 0:20:17]} 19. h6 {[%emt 0:00:28]} Qxd3 {
[%emt 0:03:01]} 20. Bxd3 {[%emt 0:00:07]} Rh7 {[%emt 0:03:26]} 21. g4 {[%emt 0:
00:00]} Rh8 {[%emt 0:02:25]} 22. gxf5 {[%emt 0:00:07]} exf5 {[%emt 0:02:44]}
23. Bg5 {[%emt 0:00:14]} Ne7 {[%emt 0:02:01]} 24. Bf6 {[%emt 0:00:10]} 1-0

[Event "44th Chess Olympiad Open 2022"]
[Site "Chennai"]
[Date "2022.07.29"]
[Round "1.36"]
[White "Kurmann, Oliver"]
[Black "Cheikhna, Mohamed Lemine"]
[Result "1-0"]
[WhiteElo "2463"]
[BlackElo "1899"]
[Annotator "RC"]
[PlyCount "87"]
[EventDate "2022.??.??"]
[TimeControl "60"]

1. e4 {[%emt 0:00:03]} c5 {[%emt 0:00:10]} 2. Nf3 {[%emt 0:00:07]} Nc6 {
[%emt 0:00:14]} 3. Nc3 {[%emt 0:00:59]} e5 {[%emt 0:00:39]} 4. Bc4 {[%emt 0:00:
00]} d6 {[%emt 0:00:45]} 5. d3 {[%emt 0:00:25]} Be7 {[%emt 0:00:37]} 6. h3 {
[%emt 0:02:19]} Nf6 {[%emt 0:03:57]} 7. Nh2 {[%emt 0:00:15]} Be6 {[%emt 0:00:
00]} 8. Ng4 {[%emt 0:00:25]} Qd7 {[%emt 0:01:37]} 9. Nxf6+ {[%emt 0:08:26]}
Bxf6 {[%emt 0:00:22]} 10. Nd5 {[%emt 0:00:37]} Bxd5 {[%emt 0:01:46]} 11. Bxd5 {
[%emt 0:03:19]} O-O {[%emt 0:00:22]} 12. Qg4 {[%emt 0:14:49]} Qc7 {[%emt 0:00:
00]} 13. c3 {[%emt 0:07:46]} Rab8 {[%emt 0:03:13]} 14. h4 {[%emt 0:00:00]} b5 {
[%emt 0:10:40]} 15. Bg5 {[%emt 0:00:00]} Bd8 {[%emt 0:03:03]} 16. Rh3 {[%emt 0:
00:00]} Qc8 {[%emt 0:13:08]} 17. Qh5 {[%emt 0:01:15]} Ne7 {[%emt 0:18:03]} 18.
Bxe7 {[%emt 0:21:09]} Bxe7 {[%emt 0:00:20]} 19. Qf3 {[%emt 0:01:38]} Qd7 {
[%emt 0:08:05]} 20. Ke2 {[%emt 0:04:40]} Bd8 {[%emt 0:04:21]} 21. g4 {[%emt 0:
00:00]} Kh8 {[%emt 0:02:05]} 22. Kf1 {[%emt 0:06:35]} b4 {[%emt 0:04:24]} 23.
c4 {[%emt 0:00:36]} Rb6 {[%emt 0:01:00]} 24. Kg2 {[%emt 0:02:01]} Ra6 {[%emt 0:
00:00]} 25. Kg3 {[%emt 0:08:24]} Ra5 {[%emt 0:00:00]} 26. g5 {[%emt 0:03:40]}
f5 {[%emt 0:00:00]} 27. exf5 {[%emt 0:00:43]} Qxf5 {[%emt 0:00:00]} 28. Qxf5 {
[%emt 0:00:06]} Rxf5 {[%emt 0:01:46]} 29. a4 {[%emt 0:03:59]} Ra6 {[%emt 0:00:
00]} 30. b3 {[%emt 0:00:29]} Rb6 {[%emt 0:00:00]} 31. Rf1 {[%emt 0:05:35]} Rf4
{[%emt 0:00:00]} 32. Re1 {[%emt 0:00:27]} Rb8 {[%emt 0:00:00]} 33. Re4 {
[%emt 0:00:35]} Rxe4 {[%emt 0:00:00]} 34. Bxe4 {[%emt 0:00:00]} Be7 {[%emt 0:
00:00]} 35. f4 {[%emt 0:01:15]} exf4+ {[%emt 0:00:00]} 36. Kxf4 {[%emt 0:00:01]
} Rf8+ {[%emt 0:00:00]} 37. Kg4 {[%emt 0:00:35]} Rf2 {[%emt 0:01:17]} 38. Re3 {
[%emt 0:00:17]} Bf8 {[%emt 0:02:17]} 39. h5 {[%emt 0:01:27]} g6 {[%emt 0:01:41]
} 40. h6 {[%emt 0:02:29]} Rf7 {[%emt 0:00:50]} 41. Bd5 {[%emt 0:30:35]} Re7 {
[%emt 0:30:29]} 42. Rf3 {[%emt 0:00:00]} Re8 {[%emt 0:00:00]} 43. a5 {[%emt 0:
00:00]} Be7 {[%emt 0:00:00]} 44. Re3 {[%emt 0:00:00]} 1-0

[Event "44th Chess Olympiad Open 2022"]
[Site "Chennai"]
[Date "2022.07.29"]
[Round "1.36"]
[White "Boidiya, Sidi"]
[Black "Baenziger, Fabian"]
[Result "0-1"]
[WhiteElo "1997"]
[BlackElo "2451"]
[Annotator "ChessBase"]
[PlyCount "56"]
[EventDate "2022.??.??"]
[TimeControl "60"]

1. e4 {[%emt 0:00:02]} c5 {[%emt 0:00:11]} 2. Nc3 {[%emt 0:00:06]} d6 {[%emt 0:
00:00]} 3. d4 {[%emt 0:00:04]} cxd4 {[%emt 0:00:23]} 4. Qxd4 {[%emt 0:00:09]}
Nc6 {[%emt 0:00:14]} 5. Qd2 {[%emt 0:00:04]} g6 {[%emt 0:00:44]} 6. b3 {
[%emt 0:00:06]} Bh6 {[%emt 0:01:25]} 7. f4 {[%emt 0:00:58]} Nf6 {[%emt 0:01:05]
} 8. Bb2 {[%emt 0:00:27]} O-O {[%emt 0:00:14]} 9. O-O-O {[%emt 0:00:08]} a5 {
[%emt 0:00:49]} 10. a3 {[%emt 0:01:27]} Bg4 {[%emt 0:08:43]} 11. Be2 {[%emt 0:
00:00]} Bxe2 {[%emt 0:09:34]} 12. Ngxe2 {[%emt 0:00:14]} a4 {[%emt 0:00:24]}
13. b4 {[%emt 0:01:10]} Ne5 {[%emt 0:02:43]} 14. Qd4 {[%emt 0:04:09]} Rc8 {
[%emt 0:07:08]} 15. Kb1 {[%emt 0:19:40]} Nc4 {[%emt 0:06:47]} 16. Bc1 {[%emt 0:
00:00]} e5 {[%emt 0:07:29]} 17. Qa7 {[%emt 0:24:23]} exf4 {[%emt 0:02:59]} 18.
Qxa4 {[%emt 0:07:45]} Ng4 {[%emt 0:06:40]} 19. Rdf1 {[%emt 0:10:59]} Nge3 {
[%emt 0:08:31]} 20. Rf3 {[%emt 0:02:14]} Ra8 {[%emt 0:03:12]} 21. Qb5 {[%emt 0:
00:00]} Nxa3+ {[%emt 0:01:40]} 22. Bxa3 {[%emt 0:00:08]} Rxa3 {[%emt 0:00:05]}
23. Kb2 {[%emt 0:01:55]} Qa8 {[%emt 0:00:38]} 24. Nxf4 {[%emt 0:03:08]} Bxf4 {
[%emt 0:04:34]} 25. Rxf4 {[%emt 0:00:30]} Rc8 {[%emt 0:00:04]} 26. Qd7 {
[%emt 0:03:15]} Nc4+ {[%emt 0:00:33]} 27. Kc1 {[%emt 0:00:30]} Ra1+ {[%emt 0:
00:00]} 28. Nb1 {[%emt 0:00:20]} Qa3+ {[%emt 0:00:13]} 0-1

[Event "44th Chess Olympiad Open 2022"]
[Site "Chennai"]
[Date "2022.07.29"]
[Round "1.36"]
[White "Hassan Sidi Mohamed Cheikh"]
[Black "Bogner, Sebastian"]
[Result "0-1"]
[WhiteElo "1825"]
[BlackElo "2545"]
[Annotator "RC"]
[PlyCount "62"]
[EventDate "2022.??.??"]
[TimeControl "60"]

1. e4 {[%emt 0:00:04]} c5 {[%emt 0:00:06]} 2. Nf3 {[%emt 0:00:25]} d6 {[%emt 0:
00:00]} 3. d4 {[%emt 0:00:23]} cxd4 {[%emt 0:00:05]} 4. Nxd4 {[%emt 0:00:06]}
Nf6 {[%emt 0:00:03]} 5. Nc3 {[%emt 0:00:06]} a6 {[%emt 0:00:05]} 6. Qf3 {
[%emt 0:08:00]} Nbd7 {[%emt 0:01:01]} 7. h3 {[%emt 0:09:10]} e6 {[%emt 0:00:53]
} 8. g4 {[%emt 0:06:31]} h6 {[%emt 0:01:43]} 9. Be3 {[%emt 0:05:00]} Qc7 {
[%emt 0:00:41]} 10. Qg2 {[%emt 0:08:45]} b5 {[%emt 0:00:26]} 11. Bd3 {[%emt 0:
00:00]} Bb7 {[%emt 0:02:02]} 12. h4 {[%emt 0:00:53]} b4 {[%emt 0:00:38]} 13.
Nce2 {[%emt 0:00:12]} d5 {[%emt 0:00:44]} 14. f3 {[%emt 0:00:15]} dxe4 {
[%emt 0:01:20]} 15. fxe4 {[%emt 0:00:18]} Nc5 {[%emt 0:00:56]} 16. Ng3 {
[%emt 0:13:37]} Nxg4 {[%emt 0:01:11]} 17. Bg1 {[%emt 0:00:27]} Ne5 {[%emt 0:00:
00]} 18. Kd2 {[%emt 0:05:44]} O-O-O {[%emt 0:00:16]} 19. Qh3 {[%emt 0:06:16]}
g6 {[%emt 0:01:33]} 20. a3 {[%emt 0:01:29]} bxa3 {[%emt 0:01:37]} 21. b4 {
[%emt 0:02:29]} Ncxd3 {[%emt 0:00:05]} 22. cxd3 {[%emt 0:00:30]} Bxb4+ {
[%emt 0:00:03]} 23. Ke2 {[%emt 0:00:15]} Rxd4 {[%emt 0:00:16]} 24. Bxd4 {
[%emt 0:00:13]} Qc2+ {[%emt 0:00:15]} 25. Kf1 {[%emt 0:00:52]} Qxd3+ {[%emt 0:
00:00]} 26. Ne2 {[%emt 0:00:24]} Qxe4 {[%emt 0:01:16]} 27. Rh2 {[%emt 0:01:47]}
Rd8 {[%emt 0:01:06]} 28. Rc1+ {[%emt 0:03:55]} Kb8 {[%emt 0:00:42]} 29. Bb6 {
[%emt 0:00:54]} Rd3 {[%emt 0:00:32]} 30. Ng3 {[%emt 0:00:58]} Qf4+ {[%emt 0:00:
00]} 31. Rf2 {[%emt 0:00:40]} Qxc1+ {[%emt 0:00:07]} 0-1

[Event "44th Chess Olympiad Open 2022"]
[Site "Chennai"]
[Date "2022.07.29"]
[Round "1.37"]
[White "Cruz, Cristhian"]
[Black "Ayyad, Husain"]
[Result "1-0"]
[WhiteElo "2579"]
[BlackElo "2209"]
[Annotator "RC"]
[PlyCount "62"]
[EventDate "2022.??.??"]
[TimeControl "60"]

1. d4 {[%emt 0:00:34]} Nf6 {[%emt 0:00:17]} 2. c4 {[%emt 0:00:28]} e6 {[%emt 0:
00:00]} 3. Nc3 {[%emt 0:00:38]} d5 {[%emt 0:00:37]} 4. cxd5 {[%emt 0:00:11]}
exd5 {[%emt 0:00:12]} 5. Bg5 {[%emt 0:00:19]} Be7 {[%emt 0:00:29]} 6. e3 {
[%emt 0:00:44]} O-O {[%emt 0:03:09]} 7. Bd3 {[%emt 0:01:07]} Nbd7 {[%emt 0:00:
00]} 8. Qc2 {[%emt 0:00:29]} Re8 {[%emt 0:06:36]} 9. Nf3 {[%emt 0:01:54]} c6 {
[%emt 0:00:16]} 10. O-O {[%emt 0:01:28]} Nf8 {[%emt 0:02:06]} 11. h3 {[%emt 0:
00:00]} Nh5 {[%emt 0:20:30]} 12. Bxe7 {[%emt 0:01:01]} Qxe7 {[%emt 0:00:05]}
13. Ne5 {[%emt 0:03:45]} Nf6 {[%emt 0:01:06]} 14. f4 {[%emt 0:06:23]} Rd8 {
[%emt 0:36:52]} 15. Rae1 {[%emt 0:06:17]} Ne8 {[%emt 0:07:19]} 16. g4 {[%emt 0:
00:00]} Nd6 {[%emt 0:03:04]} 17. f5 {[%emt 0:01:27]} f6 {[%emt 0:01:31]} 18.
Nf3 {[%emt 0:00:49]} b6 {[%emt 0:16:54]} 19. Qg2 {[%emt 0:19:34]} Bb7 {[%emt 0:
00:00]} 20. h4 {[%emt 0:05:52]} c5 {[%emt 0:00:00]} 21. g5 {[%emt 0:06:18]} Ne4
{[%emt 0:00:00]} 22. Nxe4 {[%emt 0:12:03]} dxe4 {[%emt 0:00:00]} 23. Bc4+ {
[%emt 0:01:20]} Bd5 {[%emt 0:00:00]} 24. Bxd5+ {[%emt 0:03:21]} Rxd5 {[%emt 0:
00:00]} 25. Nd2 {[%emt 0:00:18]} Rad8 {[%emt 0:00:00]} 26. Nxe4 {[%emt 0:02:15]
} Kh8 {[%emt 0:00:00]} 27. Nc3 {[%emt 0:09:13]} R5d7 {[%emt 0:00:00]} 28. d5 {
[%emt 0:00:22]} b5 {[%emt 0:00:00]} 29. e4 {[%emt 0:00:25]} b4 {[%emt 0:00:00]}
30. Ne2 {[%emt 0:00:09]} c4 {[%emt 0:00:00]} 31. Nd4 {[%emt 0:00:30]} Rc8 {
[%emt 0:00:00]} 1-0